fUSD/lending_fUSD_20240905
["ID","MTS","AMOUNT","RATE_DAILY","PERIOD"]
[337193183,1725496244052,-500.0,0.0001479,2]
[337193184,1725496244062,-690.51,0.0001479,2]
[337193185,1725496244071,-500.0,0.0001479,2]
[337193186,1725496244080,-500.0,0.0001479,2]
[337193187,1725496244089,-500.0,0.0001479,2]
[337193188,1725496244098,-654.56,0.0001479,2]
[337193189,1725496244107,-500.0,0.0001479,2]
[337193190,1725496244117,-948.49,0.0001479,2]
[337193191,1725496244128,-329.1490907,0.0001479,2]
[337193194,1725496246599,-617.64,0.00014789,2]
[337193196,1725496336809,207.06,0.00011059,2]
[337193199,1725496623104,1002.95,0.00011709,2]
[337193200,1725496651436,1140.72779821,0.00027,120]
[337193201,1725496796968,160.2,0.00010959,2]
[337193206,1725497136893,952.8,0.00011513,2]
[337193211,1725497270189,431.1,0.00010959,2]
[337193234,1725497431568,-174.97317735,0.00013389,2]
[337193235,1725497431578,-256.13610359,0.00013389,2]
[337193236,1725497431587,-281.03976583,0.00013389,2]
[337193237,1725497431597,-52.01029183,0.00013395,2]
[337193238,1725497431624,-197.98970817,0.00013395,2]
[337193239,1725497431634,-261.39657885,0.00013503,3]
[337193240,1725497431683,-238.60342115,0.00013503,3]
[337193241,1725497431692,-250.0,0.00013503,2]
[337193242,1725497431701,-481.21407502,0.00013504,2]
[337193243,1725497431740,-318.78592498,0.00013504,2]
[337193244,1725497431749,-250.0,0.00013529,2]
[337193245,1725497431758,-249.5,0.00013538,2]
[337193246,1725497431767,-150.0,0.00013616,2]
[337193247,1725497431776,-200.0,0.00013647,2]
[337193248,1725497431785,-499.99,0.00013699,2]
[337193249,1725497431794,-288.63,0.00013699,2]
[337193251,1725497431805,-210.98,0.00013699,2]
[337193252,1725497431814,-330.26,0.00013701,2]
[337193253,1725497431824,-694.8,0.00013701,2]
[337193254,1725497431834,-150.5,0.00013776,2]
[337193255,1725497431844,-952.8,0.00013777,2]
[337193256,1725497431853,-600.0,0.000139,5]
[337193258,1725497431863,-300.0,0.00013999,2]
[337193260,1725497431873,-1300.0,0.00014,5]
[337193261,1725497431883,-540.041776,0.00014019,2]
[337193262,1725497431893,-201.0,0.0001403,2]
[337193263,1725497431903,-201.0,0.0001409,2]
[337193264,1725497431913,-1097.34005075,0.000141,5]
[337193265,1725497437758,-902.65994925,0.000141,5]
[337193266,1725497437769,-201.0,0.0001416,2]
[337193267,1725497437778,-2700.0,0.000142,5]
[337193268,1725497437787,-201.0,0.0001422,2]
[337193269,1725497437797,-201.0,0.0001429,2]
[337193270,1725497437806,-3400.0,0.000143,5]
[337193271,1725497437816,-201.0,0.0001435,2]
[337193272,1725497437825,-330.26,0.00014386,2]
[337193273,1725497437834,-600.0,0.000144,5]
[337193274,1725497437844,-201.0,0.0001442,2]
[337193275,1725497437853,-201.0,0.0001448,2]
[337193276,1725497437862,-600.0,0.000145,5]
[337193277,1725497437871,-201.0,0.0001455,2]
[337193278,1725497437880,-600.0,0.000146,5]
[337193279,1725497437890,-201.0,0.0001461,2]
[337193280,1725497437899,-1777.84264,0.0001464,2]
[337193281,1725497437908,-201.0,0.0001468,2]
[337193282,1725497437917,-3392.48014367,0.0001469,2]
[337193283,1725497437927,-327.75858517,0.0001469,2]
[337193284,1725497437936,-3149.0254,0.0001469,2]
[337193285,1725497437946,-600.0,0.000147,5]
[337193286,1725497437955,-3392.48014358,0.00014713,2]
[337193287,1725497437964,-3392.48014358,0.00014737,2]
[337193288,1725497437973,-201.0,0.0001474,2]
[337193289,1725497437983,-3392.48014358,0.0001476,2]
[337193291,1725497437993,-500.0,0.00014773,2]
[337193293,1725497438002,-500.0,0.00014773,2]
[337193295,1725497438011,-500.0,0.00014773,2]
[337193296,1725497438020,-156.41721627,0.00014778,2]
[337193298,1725497438030,-5531.09,0.00014779,2]
[337193300,1725497438039,-270.1023184,0.0001478,2]
[337193302,1725497438048,-1072.83,0.0001478,2]
[337193304,1725497438057,-500.0,0.0001478,2]
[337193306,1725497438066,-400.0,0.0001478,2]
[337193307,1725497438075,-211.35667378,0.0001478,2]
[337193309,1725497438085,-743.15,0.0001478,2]
[337193311,1725497438095,-1039.76,0.0001478,2]
[337193313,1725497438103,-500.0,0.0001478,2]
[337193315,1725497438113,-500.0,0.0001478,2]
[337193317,1725497438122,-500.0,0.0001478,2]
[337193319,1725497438131,-500.0,0.0001478,2]
[337193321,1725497438140,-2171.24,0.0001478,2]
[337193323,1725497438149,-150.0,0.0001478,2]
[337193325,1725497438158,-5000.0,0.0001478,2]
[337193327,1725497438167,-108296.779285,0.0001478,2]
[337193329,1725497438176,-150.26905869,0.0001478,2]
[337193331,1725497438189,-152.11,0.0001478,2]
[337193332,1725497438198,-5531.09,0.0001478,2]
[337193334,1725497438207,-5531.09,0.0001478,2]
[337193336,1725497438216,-5531.09,0.0001478,2]
[337193338,1725497438226,-5531.09,0.0001478,2]
[337193340,1725497438235,-54148.3896427,0.00014781,2]
[337193342,1725497438244,-1289.82886376,0.00014781,2]
[337193344,1725497438253,-3392.48014358,0.00014783,2]
[337193375,1725497438552,-176.20591623,0.00014786,2]
[337193377,1725497438563,-1021.42,0.00014789,2]
[337193379,1725497438572,-515.95,0.00014789,2]
[337193381,1725497438582,-500.0,0.00014789,2]
[337193383,1725497438591,-662.66,0.00014789,2]
[337193385,1725497438600,-500.0,0.00014789,2]
[337193387,1725497438609,-568.62,0.00014789,2]
[337193389,1725497438619,-1035.91,0.00014789,2]
[337193391,1725497438629,-1035.91,0.00014789,2]
[337193393,1725497438639,-500.0,0.00014789,2]
[337193395,1725497438648,-500.0,0.00014789,2]
[337193397,1725497438657,-500.0,0.00014789,2]
[337193398,1725497438666,-500.0,0.00014789,2]
[337193400,1725497438676,-501.30737647,0.00014789,2]
[337193402,1725497438684,-1078.74,0.00014789,2]
[337193404,1725497438694,-500.0,0.00014789,3]
[337193406,1725497438703,-500.0,0.00014789,2]
[337193408,1725497438717,-1635.58,0.00014789,2]
[337193410,1725497438726,-500.0,0.00014789,2]
[337193412,1725497438735,-1072.83,0.00014789,2]
[337193414,1725497438744,-1072.83,0.00014789,2]
[337193416,1725497438753,-335.64332622,0.00014789,2]
[337193418,1725497438762,-300.0,0.00014789,2]
[337193420,1725497438771,-400.0,0.00014789,2]
[337193422,1725497438780,-400.0,0.00014789,2]
[337193424,1725497438789,-743.15,0.00014789,2]
[337193426,1725497438798,-743.15,0.00014789,2]
[337193428,1725497438807,-1039.76,0.00014789,2]
[337193430,1725497438816,-1039.76,0.00014789,2]
[337193432,1725497438826,-500.0,0.00014789,2]
[337193434,1725497438835,-380.16879816,0.00014789,2]
[337193435,1725497438844,-500.0,0.00014789,2]
[337193437,1725497438853,-500.0,0.00014789,2]
[337193439,1725497438862,-500.0,0.00014789,2]
[337193441,1725497438871,-500.0,0.00014789,2]
[337193443,1725497438880,-150.0,0.00014789,2]
[337193445,1725497438889,-150.0,0.00014789,2]
[337193447,1725497438898,-500.0,0.00014789,2]
[337193449,1725497438907,-500.0,0.00014789,2]
[337193451,1725497438917,-1000.0,0.00014789,2]
[337193453,1725497438926,-1000.0,0.00014789,2]
[337193455,1725497438935,-500.0,0.00014789,2]
[337193457,1725497438944,-500.0,0.00014789,2]
[337193459,1725497438953,-540.69991763,0.00014789,2]
[337193461,1725497438965,-500.0,0.00014789,2]
[337193463,1725497438974,-500.0,0.00014789,2]
[337193464,1725497438983,-500.0,0.00014789,2]
[337193466,1725497438993,-504.95873732,0.00014789,2]
[337193468,1725497439002,-2171.24,0.00014789,2]
[337193470,1725497439011,-2171.24,0.00014789,2]
[337193472,1725497439021,-500.0,0.00014789,2]
[337193474,1725497439031,-500.0,0.00014789,2]
[337193476,1725497439041,-500.0,0.00014789,2]
[337193478,1725497439050,-500.0,0.00014789,2]
[337193480,1725497439060,-500.0,0.00014789,2]
[337193482,1725497439069,-150.0,0.00014789,2]
[337193484,1725497439079,-150.0,0.00014789,2]
[337193486,1725497439088,-5000.0,0.00014789,2]
[337193488,1725497439098,-5000.0,0.00014789,2]
[337193490,1725497439108,-500.0,0.00014789,2]
[337193492,1725497439117,-500.0,0.00014789,2]
[337193494,1725497439126,-300.0,0.00014789,2]
[337193496,1725497439135,-300.0,0.00014789,2]
[337193498,1725497439144,-356.83127216,0.00014789,2]
[337193500,1725497439153,-160.66766435,0.00014789,2]
[337193502,1725497439162,-170.8509093,0.0001479,2]
[337193504,1725497439172,-500.0,0.0001479,2]
[337193506,1725497439181,-500.0,0.0001479,2]
[337193508,1725497439190,-500.0,0.0001479,2]
[337193510,1725497439200,-672.03,0.0001479,2]
[337193512,1725497439211,-1718.87,0.0001479,2]
[337193514,1725497439220,-500.0,0.0001479,2]
[337193516,1725497439229,-500.0,0.0001479,2]
[337193518,1725497439238,-500.0,0.0001479,2]
[337193520,1725497439248,-500.0,0.0001479,2]
[337193522,1725497439257,-718.09,0.0001479,2]
[337193523,1725497439266,-500.0,0.0001479,2]
[337193526,1725497439275,-500.0,0.0001479,2]
[337193527,1725497439285,-500.0,0.0001479,2]
[337193530,1725497439296,-500.0,0.0001479,2]
[337193532,1725497439306,-500.0,0.0001479,2]
[337193534,1725497439317,-238.82401261,0.0001479,2]
[337193536,1725497439327,-500.0,0.0001479,2]
[337193538,1725497439337,-1689.95,0.0001479,2]
[337193540,1725497439347,-500.0,0.0001479,2]
[337193542,1725497439357,-707.13,0.0001479,2]
[337193544,1725497439368,-500.0,0.0001479,2]
[337193546,1725497439378,-304.71504777,0.0001479,2]
[337193548,1725497439389,-2505.47,0.0001479,2]
[337193550,1725497439398,-500.0,0.0001479,2]
[337193552,1725497439408,-500.0,0.0001479,2]
[337193554,1725497439417,-1081.42,0.0001479,2]
[337193556,1725497439426,-500.0,0.0001479,2]
[337193558,1725497439435,-500.0,0.0001479,2]
[337193560,1725497439445,-500.0,0.0001479,2]
[337193562,1725497439455,-500.0,0.0001479,2]
[337193564,1725497439465,-1250.86,0.0001479,2]
[337193566,1725497439474,-185.12006837,0.0001479,2]
[337193568,1725497439483,-500.0,0.0001479,2]
[337193570,1725497439492,-500.0,0.0001479,2]
[337193572,1725497439501,-589.04,0.0001479,2]
[337193574,1725497439511,-500.0,0.0001479,2]
[337193575,1725497439521,-1263.54,0.0001479,2]
[337193577,1725497439531,-500.0,0.0001479,2]
[337193580,1725497439542,-500.0,0.0001479,2]
[337193581,1725497439552,-500.0,0.0001479,2]
[337193583,1725497439561,-1131.93,0.0001479,2]
[337193585,1725497439570,-883.63,0.0001479,2]
[337193587,1725497439580,-500.0,0.0001479,2]
[337193589,1725497439589,-819.6,0.0001479,2]
[337193591,1725497439599,-1844.16,0.0001479,2]
[337193593,1725497439608,-500.0,0.0001479,2]
[337193595,1725497439618,-500.0,0.0001479,2]
[337193597,1725497439628,-500.0,0.0001479,2]
[337193599,1725497439638,-526.8,0.0001479,2]
[337193601,1725497439647,-486.29367041,0.0001479,2]
[337193603,1725497439656,-500.0,0.0001479,2]
[337193605,1725497439666,-500.0,0.0001479,2]
[337193607,1725497439675,-1536.8,0.0001479,2]
[337193609,1725497439686,-500.0,0.0001479,2]
[337193611,1725497439696,-500.0,0.0001479,2]
[337193613,1725497439707,-500.0,0.0001479,2]
[337193615,1725497439716,-500.0,0.0001479,2]
[337193617,1725497439726,-553.13,0.0001479,2]
[337193619,1725497439735,-192.63319206,0.0001479,2]
[337193621,1725497439744,-500.0,0.0001479,2]
[337193623,1725497439753,-677.47,0.0001479,2]
[337193624,1725497439762,-500.0,0.0001479,2]
[337193626,1725497439772,-848.09,0.0001479,2]
[337193628,1725497439781,-500.0,0.0001479,2]
[337193630,1725497439791,-500.0,0.0001479,2]
[337193632,1725497439800,-1099.51,0.0001479,2]
[337193634,1725497439810,-500.0,0.0001479,2]
[337193636,1725497439819,-504.50186581,0.0001479,2]
[337193638,1725497439829,-191.54794779,0.0001479,2]
[337193640,1725497439839,-500.0,0.0001479,2]
[337193642,1725497439848,-489.75190467,0.0001479,2]
[337193644,1725497439858,-500.0,0.0001479,2]
[337193646,1725497439867,-500.0,0.0001479,2]
[337193648,1725497439876,-500.0,0.0001479,2]
[337193650,1725497439886,-1306.19,0.0001479,2]
[337193652,1725497439895,-609.57,0.0001479,2]
[337193654,1725497439904,-1854.25,0.0001479,2]
[337193656,1725497439914,-575.93,0.0001479,2]
[337193658,1725497439924,-500.0,0.0001479,2]
[337193660,1725497439933,-500.0,0.0001479,2]
[337193662,1725497439943,-1571.84,0.0001479,2]
[337193664,1725497439952,-500.0,0.0001479,2]
[337193666,1725497439962,-500.0,0.0001479,2]
[337193668,1725497439972,-500.0,0.0001479,2]
[337193670,1725497439981,-500.0,0.0001479,2]
[337193672,1725497439991,-558.3,0.0001479,2]
[337193674,1725497440001,-753.04,0.0001479,2]
[337193676,1725497440010,-857.22,0.0001479,2]
[337193677,1725497440019,-500.0,0.0001479,2]
[337193679,1725497440028,-500.0,0.0001479,2]
[337193681,1725497440038,-500.0,0.0001479,2]
[337193683,1725497440047,-500.0,0.0001479,2]
[337193685,1725497440056,-572.98,0.0001479,2]
[337193687,1725497440065,-500.0,0.0001479,2]
[337193689,1725497440075,-500.0,0.0001479,2]
[337193691,1725497440084,-999.59,0.0001479,2]
[337193693,1725497440094,-501.90116287,0.0001479,2]
[337193695,1725497440103,-500.0,0.0001479,2]
[337193697,1725497440113,-500.0,0.0001479,2]
[337193699,1725497440122,-1191.68,0.0001479,2]
[337193701,1725497440131,-500.0,0.0001479,2]
[337193703,1725497440140,-1421.44,0.0001479,2]
[337193705,1725497440149,-1507.87,0.0001479,2]
[337193706,1725497440158,-500.0,0.0001479,2]
[337193709,1725497440168,-524.41,0.0001479,2]
[337193710,1725497440177,-533.2,0.0001479,2]
[337193712,1725497440186,-830.42,0.0001479,2]
[337193714,1725497440196,-640.4,0.0001479,2]
[337193716,1725497440205,-500.0,0.0001479,2]
[337193718,1725497440214,-496.14783512,0.0001479,2]
[337193720,1725497440223,-500.0,0.0001479,2]
[337193722,1725497440233,-500.0,0.0001479,2]
[337193724,1725497440242,-500.0,0.0001479,2]
[337193726,1725497440254,-500.0,0.0001479,2]
[337193728,1725497440263,-2448.06,0.0001479,2]
[337193730,1725497440272,-513.32,0.0001479,2]
[337193732,1725497440282,-4417.42,0.0001479,2]
[337193734,1725497440291,-500.0,0.0001479,2]
[337193736,1725497440301,-500.0,0.0001479,2]
[337193738,1725497440310,-500.0,0.0001479,2]
[337193739,1725497440319,-500.0,0.0001479,2]
[337193740,1725497440329,-500.0,0.0001479,2]
[337193741,1725497440338,-500.0,0.0001479,2]
[337193742,1725497440347,-500.0,0.0001479,2]
[337193743,1725497440356,-4965.31,0.0001479,2]
[337193744,1725497440365,-739.07,0.0001479,2]
[337193745,1725497440374,-500.0,0.0001479,2]
[337193746,1725497440383,-538.87,0.0001479,2]
[337193747,1725497440393,-1445.89,0.0001479,2]
[337193748,1725497440402,-500.0,0.0001479,2]
[337193749,1725497440412,-500.0,0.0001479,2]
[337193750,1725497440421,-500.0,0.0001479,2]
[337193751,1725497440431,-1677.59,0.0001479,2]
[337193752,1725497440440,-586.76,0.0001479,2]
[337193753,1725497440450,-540.47,0.0001479,2]
[337193754,1725497440464,-880.76,0.0001479,2]
[337193755,1725497440474,-500.0,0.0001479,2]
[337193756,1725497440483,-500.0,0.0001479,2]
[337193757,1725497440493,-500.0,0.0001479,2]
[337193758,1725497440502,-500.0,0.0001479,2]
[337193759,1725497440512,-708.92,0.0001479,2]
[337193760,1725497440524,-500.0,0.0001479,2]
[337193761,1725497440533,-500.0,0.0001479,2]
[337193762,1725497440543,-500.0,0.0001479,2]
[337193763,1725497440553,-500.0,0.0001479,2]
[337193764,1725497440562,-500.0,0.0001479,2]
[337193765,1725497440574,-500.0,0.0001479,2]
[337193766,1725497440583,-500.0,0.0001479,2]
[337193767,1725497440592,-576.1,0.0001479,2]
[337193769,1725497440603,-154.8744199,0.0001479,2]
[337193771,1725497440613,-515.58,0.0001479,2]
[337193773,1725497440623,-748.71,0.0001479,2]
[337193775,1725497440632,-500.0,0.0001479,2]
[337193777,1725497440642,-500.0,0.0001479,2]
[337193779,1725497440652,-500.0,0.0001479,2]
[337193781,1725497440664,-500.0,0.0001479,2]
[337193783,1725497440673,-998.24,0.0001479,2]
[337193785,1725497440684,-1247.71,0.0001479,2]
[337193787,1725497440694,-659.92,0.0001479,2]
[337193789,1725497440705,-500.0,0.0001479,2]
[337193791,1725497440716,-500.0,0.0001479,2]
[337193793,1725497440726,-500.0,0.0001479,2]
[337193795,1725497440735,-500.0,0.0001479,2]
[337193797,1725497440744,-500.0,0.0001479,2]
[337193799,1725497440754,-500.0,0.0001479,2]
[337193801,1725497440764,-510.56,0.0001479,2]
[337193803,1725497440774,-500.0,0.0001479,2]
[337193805,1725497440783,-718.06,0.0001479,2]
[337193807,1725497440792,-825.19,0.0001479,2]
[337193809,1725497440802,-1608.34,0.0001479,2]
[337193811,1725497440812,-1083.4,0.0001479,2]
[337193813,1725497440822,-500.0,0.0001479,2]
[337193815,1725497440832,-688.84,0.0001479,2]
[337193817,1725497440841,-722.78,0.0001479,2]
[337193819,1725497440851,-915.18,0.0001479,2]
[337193821,1725497440860,-500.0,0.0001479,2]
[337193823,1725497440869,-790.45,0.0001479,2]
[337193825,1725497440879,-1364.69,0.0001479,2]
[337193827,1725497440888,-500.0,0.0001479,2]
[337193829,1725497440898,-500.0,0.0001479,2]
[337193830,1725497440907,-500.0,0.0001479,2]
[337193832,1725497440917,-1362.47,0.0001479,2]
[337193834,1725497440926,-500.0,0.0001479,2]
[337193836,1725497440936,-682.1,0.0001479,2]
[337193838,1725497440946,-970.24,0.0001479,2]
[337193840,1725497440955,-328.15150927,0.0001479,2]
[337193842,1725497440965,-1116.52,0.0001479,2]
[337193844,1725497440974,-573.0,0.0001479,2]
[337193846,1725497440983,-500.0,0.0001479,2]
[337193848,1725497440992,-500.0,0.0001479,2]
[337193850,1725497441002,-500.0,0.0001479,2]
[337193852,1725497441011,-983.94,0.0001479,2]
[337193854,1725497441020,-500.0,0.0001479,2]
[337193855,1725497441029,-500.0,0.0001479,2]
[337193857,1725497441038,-500.0,0.0001479,2]
[337193859,1725497441047,-1036.2,0.0001479,2]
[337193861,1725497441056,-500.0,0.0001479,2]
[337193863,1725497441066,-500.0,0.0001479,2]
[337193865,1725497441075,-500.0,0.0001479,2]
[337193867,1725497441084,-1724.96,0.0001479,2]
[337193869,1725497441094,-500.0,0.0001479,2]
[337193871,1725497441103,-624.47,0.0001479,2]
[337193873,1725497441112,-500.0,0.0001479,2]
[337193875,1725497441121,-1231.11,0.0001479,2]
[337193877,1725497441131,-530.06382264,0.0001479,2]
[337193890,1725497441251,-137.29617736,0.0001479,2]
[337193892,1725497441261,-1027.28646066,0.0001479,2]
[337193894,1725497441274,-771.34353934,0.0001479,2]
[337193896,1725497441283,-2259.1,0.0001479,2]
[337193898,1725497441292,-2259.1,0.0001479,2]
[337193900,1725497441301,-596.99,0.0001479,2]
[337193902,1725497441310,-1176.37,0.0001479,2]
[337193904,1725497441320,-500.0,0.0001479,2]
[337193906,1725497441328,-342.09643066,0.0001479,2]
[337193908,1725497441340,-157.90356934,0.0001479,2]
[337193910,1725497441349,-500.0,0.0001479,2]
[337193912,1725497441358,-500.0,0.0001479,2]
[337193914,1725497441367,-500.0,0.0001479,2]
[337193916,1725497441376,-500.0,0.0001479,2]
[337193918,1725497441386,-500.0,0.0001479,2]
[337193920,1725497441397,-521.82,0.0001479,2]
[337193922,1725497441408,-1706.96,0.0001479,2]
[337193924,1725497441418,-1706.96,0.0001479,2]
[337193926,1725497441428,-500.0,0.0001479,2]
[337193928,1725497441439,-1086.08,0.0001479,2]
[337193930,1725497441448,-500.0,0.0001479,2]
[337193932,1725497441458,-538.47,0.0001479,2]
[337193934,1725497441467,-500.0,0.0001479,2]
[337193936,1725497441476,-500.0,0.0001479,2]
[337193938,1725497441485,-500.0,0.0001479,2]
[337193939,1725497441495,-587.08,0.0001479,2]
[337193941,1725497441505,-1245.59,0.0001479,2]
[337193943,1725497441516,-972.25,0.0001479,2]
[337193945,1725497441530,-1245.59,0.0001479,2]
[337193947,1725497441540,-500.0,0.0001479,2]
[337193949,1725497441550,-500.0,0.0001479,2]
[337193951,1725497441560,-500.0,0.0001479,2]
[337193953,1725497441569,-500.0,0.0001479,2]
[337193955,1725497441579,-500.0,0.0001479,2]
[337193957,1725497441588,-470.92019783,0.0001479,2]
[337193959,1725497441597,-345.91748425,0.0001479,2]
[337193961,1725497441606,-3409.91,0.0001479,2]
[337193963,1725497441615,-500.0,0.0001479,2]
[337193965,1725497441625,-500.0,0.0001479,2]
[337193967,1725497441634,-545.14665303,0.0001479,2]
[337193969,1725497441643,-500.0,0.0001479,2]
[337193971,1725497441652,-500.0,0.0001479,2]
[337193973,1725497441662,-500.0,0.0001479,2]
[337193975,1725497441673,-500.0,0.0001479,2]
[337193977,1725497441683,-500.0,0.0001479,2]
[337193979,1725497441694,-500.0,0.0001479,2]
[337193981,1725497441703,-500.0,0.0001479,2]
[337193983,1725497441714,-1033.94,0.0001479,2]
[337193985,1725497441723,-500.0,0.0001479,2]
[337193987,1725497441732,-500.0,0.0001479,2]
[337193988,1725497441742,-500.0,0.0001479,2]
[337193990,1725497441751,-500.0,0.0001479,2]
[337193992,1725497441760,-15533.41,0.0001479,2]
[337193994,1725497441770,-500.0,0.0001479,2]
[337193996,1725497441780,-500.0,0.0001479,2]
[337193998,1725497441790,-500.0,0.0001479,2]
[337194001,1725497441800,-500.0,0.0001479,2]
[337194003,1725497441810,-500.0,0.0001479,2]
[337194005,1725497441820,-500.0,0.0001479,2]
[337194006,1725497441829,-500.0,0.0001479,2]
[337194008,1725497441839,-500.0,0.0001479,2]
[337194010,1725497441848,-500.0,0.0001479,2]
[337194012,1725497441857,-500.0,0.0001479,2]
[337194014,1725497441866,-500.0,0.0001479,2]
[337194016,1725497441875,-500.0,0.0001479,2]
[337194018,1725497441884,-4760.98,0.0001479,2]
[337194020,1725497441896,-500.0,0.0001479,2]
[337194022,1725497441905,-500.0,0.0001479,2]
[337194023,1725497441915,-500.0,0.0001479,2]
[337194025,1725497441924,-1590.51,0.0001479,2]
[337194027,1725497441933,-500.0,0.0001479,2]
[337194029,1725497441942,-500.0,0.0001479,2]
[337194031,1725497441951,-500.0,0.0001479,2]
[337194033,1725497441964,-3587.56,0.0001479,2]
[337194035,1725497441973,-1240.3,0.0001479,2]
[337194037,1725497441982,-500.0,0.0001479,2]
[337194039,1725497441992,-500.0,0.0001479,2]
[337194041,1725497442001,-1240.3,0.0001479,2]
[337194043,1725497442010,-532.57927254,0.0001479,2]
[337194044,1725497442020,-1462.93,0.0001479,2]
[337194047,1725497442030,-1936.63,0.0001479,2]
[337194048,1725497442039,-941.98,0.0001479,2]
[337194050,1725497442048,-500.0,0.0001479,2]
[337194052,1725497442058,-500.0,0.0001479,2]
[337194054,1725497442067,-500.0,0.0001479,2]
[337194056,1725497442078,-5884.3,0.0001479,2]
[337194058,1725497442088,-730.51,0.0001479,2]
[337194060,1725497442097,-500.0,0.0001479,2]
[337194062,1725497442107,-500.0,0.0001479,2]
[337194064,1725497442116,-500.0,0.0001479,2]
[337194065,1725497442126,-1133.18,0.0001479,2]
[337194068,1725497442136,-2866.35,0.0001479,2]
[337194070,1725497442148,-2866.35,0.0001479,2]
[337194072,1725497442157,-530.75,0.0001479,2]
[337194074,1725497442167,-500.0,0.0001479,2]
[337194076,1725497442176,-377.39877266,0.0001479,2]
[337194078,1725497442185,-500.0,0.0001479,2]
[337194080,1725497442194,-500.0,0.0001479,2]
[337194082,1725497442203,-654.17,0.0001479,2]
[337194083,1725497442215,-847.62,0.0001479,2]
[337194085,1725497442224,-693.65,0.0001479,2]
[337194087,1725497442233,-693.65,0.0001479,2]
[337194089,1725497442242,-500.0,0.0001479,2]
[337194092,1725497442251,-8263.51,0.0001479,2]
[337194095,1725497442260,-1611.08,0.0001479,2]
[337194098,1725497442269,-500.0,0.0001479,2]
[337194100,1725497442278,-500.0,0.0001479,2]
[337194102,1725497442287,-500.0,0.0001479,2]
[337194104,1725497442298,-500.0,0.0001479,2]
[337194106,1725497442308,-500.0,0.0001479,2]
[337194108,1725497442317,-908.28,0.0001479,2]
[337194110,1725497442326,-908.28,0.0001479,2]
[337194111,1725497442335,-500.0,0.0001479,2]
[337194113,1725497442344,-1430.56,0.0001479,2]
[337194116,1725497442354,-657.2,0.0001479,2]
[337194117,1725497442363,-749.5,0.0001479,2]
[337194119,1725497442373,-657.2,0.0001479,2]
[337194121,1725497442383,-500.0,0.0001479,2]
[337194124,1725497442392,-500.0,0.0001479,2]
[337194127,1725497442402,-500.0,0.0001479,2]
[337194130,1725497442411,-500.0,0.0001479,2]
[337194132,1725497442422,-500.0,0.0001479,2]
[337194134,1725497442431,-774.08,0.0001479,2]
[337194136,1725497442441,-510.9,0.0001479,2]
[337194139,1725497442452,-774.08,0.0001479,2]
[337194141,1725497442464,-2081.3,0.0001479,2]
[337194143,1725497442473,-510.9,0.0001479,2]
[337194145,1725497442483,-500.0,0.0001479,2]
[337194147,1725497442492,-500.0,0.0001479,2]
[337194149,1725497442501,-500.0,0.0001479,2]
[337194150,1725497442510,-500.0,0.0001479,2]